bitfinex-derivatives/quotes_BTCF0:USTF0_20241223
["timestamp","ask_amount","ask_price","bid_price","bid_amount"]
[1734963012145,0.062541,95273.0,95272.0,0.001]
[1734963012451,0.052546,95264.0,95261.0,0.3608]
[1734963012953,0.052546,95263.0,95261.0,0.3608]
[1734963013153,0.003,95273.0,95255.0,0.1873271]
[1734963013154,0.05255,95256.0,95255.0,0.1873271]
[1734963013852,0.052552,95252.0,95251.0,0.24976946]
[1734963014752,0.052554,95248.0,95241.0,0.052558]
[1734963015456,0.052552,95252.0,95237.0,0.34193275]
[1734963015844,0.052559,95242.0,95241.0,0.052558]
[1734963016346,0.05256,95238.0,95237.0,0.34193275]
[1734963017147,0.001,95248.0,95241.0,0.001]
[1734963017349,0.052558,95242.0,95241.0,0.001]
[1734963017548,0.052558,95242.0,95237.0,0.34193275]
[1734963017746,0.052561,95237.0,95211.0,0.30234446]
[1734963017952,0.052572,95217.0,95213.0,0.3608]
[1734963018147,0.052574,95213.0,95211.0,0.24976946]
[1734963018342,0.052574,95213.0,95212.0,0.3608]
[1734963018853,0.052574,95213.0,95211.0,0.61056946]
[1734963019057,0.052574,95213.0,95211.0,0.24976946]
[1734963019350,0.3608,95217.0,95200.0,0.1]
[1734963019557,0.052579,95204.0,95200.0,0.1]
[1734963020548,0.052579,95204.0,95202.0,0.00911793]
[1734963021252,0.053579,95204.0,95202.0,0.00911793]
[1734963024460,0.053579,95204.0,95202.0,0.009]
[1734963025855,0.053579,95204.0,95202.0,0.008]
[1734963026159,0.053579,95204.0,95202.0,0.002]
[1734963026657,0.05258,95201.0,95200.0,0.1]
[1734963027249,0.001,95204.0,95203.0,0.052579]
[1734963027559,0.052574,95213.0,95211.0,0.052574]
[1734963027759,0.052574,95213.0,95212.0,0.3608]
[1734963030053,0.059574,95213.0,95212.0,0.3618]
[1734963030851,0.059574,95213.0,95212.0,0.001]
[1734963031248,0.007,95213.0,95212.0,0.001]
[1734963031448,0.007,95213.0,95212.0,0.053574]
[1734963031663,0.052564,95231.0,95230.0,0.052564]
[1734963031855,0.052564,95231.0,95230.0,0.3608]
[1734963032960,0.12726349,95240.0,95230.0,0.3608]
[1734963032961,0.12726349,95240.0,95230.0,0.3618]
[1734963033261,0.3608,95268.0,95258.0,0.052549]
[1734963033462,0.18524311,95277.0,95261.0,0.052547]
[1734963033662,0.052545,95266.0,95261.0,0.052547]
[1734963033855,0.052546,95265.0,95261.0,0.052547]
[1734963034253,0.052543,95270.0,95266.0,0.052544]
[1734963034655,0.052547,95262.0,95260.0,0.413347]
[1734963035462,0.052547,95262.0,95260.0,0.340347]
[1734963035665,0.3608,95278.0,95260.0,0.2878]
[1734963036263,0.052546,95263.0,95261.0,0.053547]
[1734963036560,0.052546,95263.0,95261.0,0.001]
[1734963037155,0.052547,95261.0,95260.0,0.2878]
[1734963037666,0.3618,95278.0,95260.0,0.2878]
[1734963037667,0.052542,95270.0,95260.0,0.2878]
[1734963037853,0.052544,95267.0,95265.0,0.052545]
[1734963038164,0.052544,95267.0,95253.0,0.01969416]
[1734963038165,0.3608,95267.0,95256.0,0.05255]
[1734963038458,0.3608,95267.0,95250.0,0.3608]
[1734963038664,0.052549,95259.0,95256.0,0.05255]
[1734963038859,0.052549,95259.0,95257.0,0.052549]
[1734963039561,0.052545,95266.0,95262.0,0.052547]
[1734963039763,0.3608,95267.0,95256.0,0.004]
[1734963040064,0.005,95259.0,95258.0,0.052549]
[1734963040456,0.057548,95259.0,95258.0,0.052549]
[1734963040651,0.057548,95259.0,95257.0,0.002]
[1734963040858,0.418348,95259.0,95257.0,0.002]
[1734963041762,0.413348,95259.0,95257.0,0.006]
[1734963042270,0.413348,95259.0,95230.0,0.12883852]
[1734963042271,0.418348,95259.0,95234.0,0.052562]
[1734963042451,0.05256,95238.0,95235.0,0.3608]
[1734963042951,0.052564,95231.0,95230.0,0.00157503]
[1734963043472,0.3608,95231.0,95215.0,0.36152]
[1734963043658,0.3608,95231.0,95215.0,0.3608]
[1734963043967,0.052564,95230.0,95220.0,0.3608]
[1734963044164,0.3608,95231.0,95220.0,0.3608]
[1734963044365,0.052568,95223.0,95220.0,0.3608]
[1734963044667,0.052568,95223.0,95221.0,0.052569]
[1734963046055,0.053568,95223.0,95221.0,0.052569]
[1734963046255,0.056568,95223.0,95221.0,0.052569]
[1734963047362,0.004,95223.0,95221.0,0.052569]
[1734963047868,0.3608,95252.0,95251.0,0.052553]
[1734963048167,0.05412243,95261.0,95251.0,0.052553]
[1734963048461,0.00056001,95279.0,95262.0,0.052547]
[1734963048662,0.21667697,95279.0,95278.0,0.052538]
[1734963048860,0.21611696,95279.0,95278.0,0.413338]
[1734963049472,0.24699081,95288.0,95287.0,0.052533]
[1734963049771,0.24699081,95288.0,95287.0,0.413333]
[1734963050466,0.24699081,95288.0,95287.0,0.340333]
[1734963050669,0.052532,95289.0,95287.0,0.340333]
[1734963051275,0.12726349,95300.0,95280.0,0.052536]
[1734963051466,0.052537,95279.0,95278.0,0.3678]
[1734963051869,0.052537,95279.0,95278.0,0.3608]
[1734963052267,0.001,95289.0,95288.0,0.052532]
[1734963052971,0.001,95289.0,95286.0,0.3608]
[1734963053372,0.052531,95291.0,95286.0,0.3608]
[1734963053672,0.052533,95288.0,95286.0,0.3608]
[1734963053872,0.052537,95279.0,95278.0,0.001]
[1734963054669,0.3608,95281.0,95253.0,0.3608]
[1734963054874,0.3608,95281.0,95265.0,0.3608]
[1734963055374,0.3608,95281.0,95265.0,0.413345]
[1734963055570,0.052543,95269.0,95265.0,0.413345]
[1734963055772,0.052544,95267.0,95265.0,0.3608]
[1734963057771,0.05255,95257.0,95256.0,0.1363646]
[1734963058174,0.052546,95264.0,95256.0,0.1363646]
[1734963058381,0.052546,95264.0,95263.0,0.3608]
[1734963058966,0.052545,95266.0,95263.0,0.3608]
[1734963059172,0.052546,95264.0,95259.0,0.052548]
[1734963059380,0.052548,95261.0,95259.0,0.052548]
[1734963060479,0.001,95264.0,95256.0,0.1363646]
[1734963060780,0.052549,95257.0,95256.0,0.1363646]
[1734963060977,0.3608,95272.0,95256.0,0.1363646]
[1734963060978,0.3608,95272.0,95256.0,0.0205646]
[1734963061167,0.3608,95272.0,95268.0,0.052543]
[1734963061168,0.052542,95271.0,95268.0,0.052543]
[1734963061368,0.052539,95277.0,95275.0,0.052539]
[1734963061567,0.36144,95281.0,95263.0,0.3608]
[1734963061782,0.3608,95281.0,95280.0,0.052537]
[1734963062885,0.052534,95286.0,95281.0,0.052536]
[1734963063082,0.052534,95285.0,95281.0,0.052536]
[1734963063292,0.052534,95285.0,95284.0,0.413335]
[1734963063476,0.052534,95285.0,95284.0,0.3608]
[1734963063676,0.052534,95285.0,95273.0,0.1292]
[1734963063677,0.3608,95293.0,95273.0,0.1292]
[1734963063871,0.052541,95272.0,95271.0,0.3608]
[1734963064980,0.052548,95260.0,95255.0,0.0015746]
[1734963065286,0.05255,95256.0,95255.0,0.0015746]
[1734963066178,0.004,95272.0,95255.0,0.0015746]
[1734963066179,0.004,95272.0,95271.0,0.052542]
[1734963066379,0.00056001,95283.0,95282.0,0.052536]
[1734963066579,0.052535,95284.0,95282.0,0.052536]
[1734963067779,0.052539,95278.0,95277.0,0.052538]
[1734963068485,0.12726349,95292.0,95271.0,0.38094209]
[1734963068684,0.052535,95283.0,95282.0,0.006]
[1734963069187,0.3608,95294.0,95279.0,0.3608]
[1734963069389,0.052536,95282.0,95279.0,0.3608]
[1734963070579,0.052536,95282.0,95279.0,0.2878]
[1734963070779,0.001,95283.0,95279.0,0.2878]
[1734963070984,0.001,95283.0,95282.0,0.056536]
[1734963071185,0.001,95283.0,95282.0,0.004]
[1734963071772,0.052537,95280.0,95279.0,0.2918]
[1734963071976,0.052537,95280.0,95279.0,0.004]
[1734963072184,0.052537,95280.0,95279.0,0.011]
[1734963072380,0.052537,95280.0,95279.0,0.007]
[1734963072788,0.001,95283.0,95274.0,0.05254]
[1734963073683,0.001,95283.0,95271.0,0.02086209]
[1734963073684,0.052541,95272.0,95271.0,0.02086209]
[1734963073983,0.3608,95278.0,95260.0,0.12726349]
[1734963074182,0.3608,95278.0,95268.0,0.12726349]
[1734963074379,0.3608,95278.0,95268.0,0.48806349]
[1734963074583,0.001,95280.0,95279.0,0.004]
[1734963074788,0.001,95280.0,95279.0,0.056537]
[1734963075480,0.002,95278.0,95277.0,0.340337]
[1734963075878,0.002,95278.0,95277.0,0.41271208]
[1734963076386,0.002,95278.0,95277.0,0.36017408]
[1734963076882,0.002,95278.0,95277.0,0.36117408]
[1734963077085,0.009,95278.0,95277.0,0.41371208]
[1734963078191,0.013,95278.0,95277.0,0.41371208]
[1734963079881,0.013,95278.0,95277.0,0.02083708]
[1734963081398,0.013,95278.0,95273.0,0.61132946]
[1734963081590,0.052539,95277.0,95276.0,0.052539]
[1734963082594,0.013,95278.0,95273.0,0.25076946]
[1734963082595,0.05254,95274.0,95273.0,0.25076946]
[1734963082787,0.05254,95274.0,95273.0,0.27071257]
[1734963083200,0.05254,95274.0,95273.0,0.01994311]
[1734963083498,0.05254,95274.0,95272.0,0.24976946]
[1734963083798,0.05254,95274.0,95273.0,0.052541]
[1734963084301,0.05554,95274.0,95273.0,0.052541]
[1734963084995,0.06354,95274.0,95273.0,0.053541]
[1734963085893,0.06354,95274.0,95273.0,0.30529076]
[1734963086500,0.06354,95274.0,95273.0,0.25274976]
[1734963086886,0.06054,95274.0,95273.0,0.25274976]
[1734963087093,0.06354,95274.0,95273.0,0.25274976]
[1734963087404,0.42434,95274.0,95273.0,0.25274976]
[1734963088291,0.06354,95274.0,95273.0,0.25274976]
[1734963089197,0.011,95274.0,95273.0,0.30529076]
[1734963089792,0.06354,95274.0,95273.0,0.053541]
[1734963090601,0.011,95274.0,95273.0,0.053541]
[1734963091702,0.06354,95274.0,95273.0,0.001]
[1734963091998,0.06354,95274.0,95273.0,0.053541]
[1734963092791,0.011,95274.0,95273.0,0.053541]
[1734963093196,0.008,95274.0,95273.0,0.054541]
[1734963093909,0.008,95274.0,95273.0,0.053541]
[1734963094096,0.01,95274.0,95273.0,0.053541]
[1734963095208,0.05454,95274.0,95273.0,0.002]
[1734963095703,0.06054,95274.0,95273.0,0.052541]
[1734963096299,0.008,95274.0,95273.0,0.052541]
[1734963096697,0.06054,95274.0,95273.0,0.052541]
[1734963096892,0.13198936,95274.0,95273.0,0.30456591]
[1734963097299,0.15575807,95284.0,95283.0,0.052535]
[1734963098103,0.15575807,95289.0,95288.0,0.052532]
[1734963099491,0.1858185,95298.0,95288.0,0.416332]
[1734963099492,0.15575807,95298.0,95288.0,0.416332]
[1734963099701,0.1459285,95304.0,95297.0,0.052527]
[1734963099997,0.1459285,95304.0,95303.0,0.052524]
[1734963100404,0.3608,95324.0,95315.0,0.052518]
[1734963100712,0.00056001,95324.0,95323.0,0.052513]
[1734963101007,0.3608,95343.0,95323.0,0.3608]
[1734963101197,0.052502,95344.0,95336.0,0.052506]
[1734963101999,0.24934456,95345.0,95340.0,0.052503]
[1734963103110,0.052501,95345.0,95340.0,0.052503]
[1734963103304,0.052505,95338.0,95336.0,0.003]
[1734963103606,0.05251,95329.0,95328.0,0.2510209]
[1734963103906,0.41331,95329.0,95328.0,0.2510209]
[1734963104300,0.052516,95317.0,95316.0,0.00092]
[1734963104505,0.052519,95312.0,95308.0,0.2510209]
[1734963104708,0.3608,95318.0,95308.0,0.2510209]
[1734963104905,0.052521,95310.0,95308.0,0.2510209]
[1734963105106,0.3608,95309.0,95308.0,0.2510209]
[1734963105403,0.3608,95309.0,95308.0,0.0252555]
[1734963105607,0.3608,95309.0,95295.0,0.25259475]
[1734963105911,0.052527,95299.0,95295.0,0.25259475]
[1734963106107,0.052525,95302.0,95296.0,0.052528]
[1734963106306,0.3608,95309.0,95296.0,0.052528]
[1734963106504,0.052525,95301.0,95296.0,0.052528]
[1734963106703,0.052528,95297.0,95295.0,0.27825185]
[1734963106899,0.413328,95297.0,95295.0,0.02723095]
[1734963107207,0.35083912,95297.0,95295.0,0.02823095]
[1734963107705,0.00110014,95296.0,95295.0,0.02823095]
[1734963107911,0.12030014,95296.0,95295.0,0.02823095]
[1734963108111,0.12055467,95296.0,95295.0,0.02823095]
[1734963108316,0.00135467,95296.0,95295.0,0.02823095]
[1734963108505,0.00135467,95296.0,95295.0,0.02723095]
[1734963109201,0.00235467,95296.0,95295.0,0.03323095]
[1734963109602,0.3608,95309.0,95308.0,0.052521]
[1734963110104,0.36136001,95318.0,95317.0,0.052516]
[1734963110305,0.36136001,95318.0,95313.0,0.3608]
[1734963110306,0.00441034,95318.0,95313.0,0.3608]
[1734963110508,0.00441034,95318.0,95313.0,0.340316]
[1734963110808,0.00441034,95318.0,95317.0,0.052516]
[1734963112799,0.00541034,95318.0,95317.0,0.063516]
[1734963116013,0.00566508,95318.0,95317.0,0.063516]
[1734963116413,0.00684817,95318.0,95317.0,0.063516]
[1734963117308,0.4808,95337.0,95319.0,0.052515]
[1734963117508,0.4808,95337.0,95322.0,0.3608]
[1734963117723,0.4808,95337.0,95332.0,0.052508]
[1734963118507,0.052507,95334.0,95332.0,0.052508]
[1734963119116,0.48236001,95337.0,95313.0,0.3608]
[1734963119117,0.05251,95329.0,95313.0,0.3608]
[1734963119414,0.05251,95329.0,95325.0,0.052512]
[1734963119805,0.534306,95337.0,95314.0,0.052518]
[1734963120006,0.001,95334.0,95320.0,0.12689692]
[1734963120207,0.001,95334.0,95314.0,0.052518]
[1734963120409,0.001,95334.0,95313.0,0.3608]
[1734963120718,0.001,95334.0,95333.0,0.052508]
[1734963121218,0.002,95334.0,95333.0,0.052508]
[1734963121719,0.001,95334.0,95333.0,0.052508]
[1734963122018,0.172506,95337.0,95333.0,0.052508]
[1734963122218,0.12,95337.0,95322.0,0.3608]
[1734963122510,0.052507,95335.0,95322.0,0.3608]
[1734963122707,0.12,95337.0,95335.0,0.052506]
[1734963123310,0.00143761,95336.0,95335.0,0.052506]
[1734963123615,0.052509,95331.0,95328.0,0.05251]
[1734963123921,0.052509,95331.0,95329.0,0.05251]
[1734963124312,0.00143761,95330.0,95329.0,0.05251]
[1734963125614,0.00143761,95330.0,95329.0,0.05351]
[1734963127012,0.00143761,95330.0,95329.0,0.05651]
[1734963127415,0.00343761,95330.0,95322.0,0.02544462]
[1734963127611,0.052515,95319.0,95317.0,0.2510209]
[1734963127805,0.1174,95318.0,95317.0,0.2510209]
[1734963128116,0.1174,95318.0,95317.0,0.27551988]
[1734963128416,0.11883761,95318.0,95317.0,0.27551988]
[1734963128716,0.052521,95309.0,95308.0,0.31221183]
[1734963128915,0.052524,95303.0,95302.0,0.27619453]
[1734963129510,0.05421586,95303.0,95302.0,0.27619453]
[1734963130008,0.05821586,95303.0,95302.0,0.25082687]
[1734963130316,0.052528,95296.0,95295.0,0.31221183]
[1734963130520,0.00194619,95296.0,95295.0,0.31221183]
[1734963130721,0.00194619,95296.0,95295.0,0.36474083]
[1734963130912,0.00194619,95296.0,95295.0,0.052529]
[1734963131722,0.00220052,95296.0,95295.0,0.052529]
[1734963132626,0.00545485,95296.0,95295.0,0.052529]
[1734963133426,0.00245485,95296.0,95295.0,0.052529]
[1734963133613,0.00745485,95296.0,95295.0,0.052529]
[1734963133810,0.00945485,95296.0,95295.0,0.052529]
[1734963134015,0.00970976,95296.0,95295.0,0.052529]
[1734963134524,0.00870976,95296.0,95295.0,0.052529]
[1734963135125,0.00687572,95296.0,95295.0,0.052529]
[1734963135624,0.09318479,95317.0,95309.0,0.052521]
[1734963135831,0.09318479,95317.0,95316.0,0.052517]
[1734963136015,0.09019031,95317.0,95316.0,0.413317]
[1734963136723,0.09019031,95317.0,95312.0,0.3608]
[1734963136927,0.09019031,95317.0,95315.0,0.052517]
[1734963137722,0.09019031,95317.0,95316.0,0.001]
[1734963137919,0.052511,95327.0,95320.0,0.052514]
[1734963138116,0.00157436,95329.0,95316.0,0.001]
[1734963138338,0.052515,95320.0,95313.0,0.052518]
[1734963138524,0.052515,95320.0,95315.0,0.001]
[1734963138823,0.052516,95319.0,95315.0,0.001]
[1734963139025,0.052516,95319.0,95316.0,0.052517]
[1734963139428,0.001,95317.0,95316.0,0.052517]
[1734963140127,0.3608,95327.0,95315.0,0.005]
[1734963140329,0.052517,95317.0,95315.0,0.005]
[1734963140926,0.053517,95317.0,95315.0,0.005]
[1734963141520,0.052517,95317.0,95315.0,0.002]
[1734963141717,0.055517,95317.0,95315.0,0.002]
[1734963142119,0.003,95317.0,95315.0,0.054517]
[1734963142327,0.3608,95327.0,95315.0,0.002]
[1734963142524,0.3608,95327.0,95324.0,0.052512]
[1734963143026,0.00157436,95329.0,95325.0,0.052512]
[1734963143217,0.052511,95327.0,95325.0,0.052512]
[1734963143629,0.052512,95325.0,95324.0,0.3608]
[1734963143825,0.3608,95327.0,95315.0,0.18819373]
[1734963144024,0.052517,95316.0,95315.0,0.18819373]
[1734963144329,0.413317,95316.0,95315.0,0.18819373]
[1734963144528,0.052517,95316.0,95315.0,0.18819373]
[1734963144735,0.052517,95316.0,95315.0,0.19019373]
[1734963145230,0.052517,95316.0,95315.0,0.001]
[1734963145527,0.413317,95316.0,95315.0,0.001]
[1734963145921,0.3658,95316.0,95315.0,0.001]
[1734963146326,0.3678,95316.0,95315.0,0.001]
[1734963146821,0.420317,95316.0,95315.0,0.001]
[1734963147130,0.418317,95316.0,95315.0,0.001]
[1734963147614,0.057517,95316.0,95315.0,0.001]
[1734963147818,0.059517,95316.0,95315.0,0.001]
[1734963148020,0.052521,95309.0,95307.0,0.052522]
[1734963148220,0.052521,95309.0,95307.0,0.07814566]
[1734963148514,0.052521,95309.0,95307.0,0.02562366]
[1734963148830,0.052524,95305.0,95304.0,0.052523]
[1734963149131,0.008,95316.0,95314.0,0.052518]
[1734963149336,0.002,95316.0,95314.0,0.052518]
[1734963149519,0.054517,95316.0,95314.0,0.052518]
[1734963150124,0.002,95316.0,95314.0,0.052518]
[1734963150424,0.052514,95322.0,95321.0,0.052514]
[1734963150621,0.36140001,95327.0,95324.0,0.052512]
[1734963150817,0.3608,95327.0,95324.0,0.052512]
[1734963151027,0.052512,95326.0,95324.0,0.052512]
[1734963152125,0.052512,95326.0,95324.0,0.001]
[1734963152624,0.052512,95326.0,95312.0,0.18819373]
[1734963152824,0.052518,95314.0,95313.0,0.052518]
[1734963153627,0.36136001,95315.0,95313.0,0.052518]
[1734963153826,0.413318,95315.0,95313.0,0.052518]
[1734963154931,0.052519,95313.0,95312.0,0.02167522]
[1734963155127,0.052519,95313.0,95311.0,0.05252]
[1734963155736,0.052519,95313.0,95310.0,0.05252]
[1734963156935,0.05252,95311.0,95310.0,0.05252]
[1734963157231,0.05252,95311.0,95310.0,0.05452]
[1734963157626,0.052519,95314.0,95313.0,0.052518]
[1734963157826,0.052521,95310.0,95307.0,0.052522]
[1734963158029,0.3608,95315.0,95307.0,0.052522]
[1734963158223,0.052521,95310.0,95307.0,0.052522]
[1734963158431,0.3608,95315.0,95300.0,0.08465426]
[1734963158625,0.3608,95315.0,95310.0,0.004]
[1734963158830,0.05252,95311.0,95310.0,0.05652]
[1734963159027,0.052523,95306.0,95303.0,0.052524]
[1734963159233,0.05252,95311.0,95310.0,0.05252]
[1734963159436,0.413318,95315.0,95314.0,0.052518]
[1734963159638,0.3608,95315.0,95314.0,0.052518]
[1734963160534,0.413318,95315.0,95314.0,0.052518]
[1734963161134,0.3628,95315.0,95298.0,0.38113131]
[1734963161344,0.3628,95315.0,95310.0,0.001]
[1734963161946,0.3628,95315.0,95314.0,0.001]
[1734963162241,0.415318,95315.0,95314.0,0.001]
[1734963162443,0.48721776,95315.0,95300.0,0.08465426]
[1734963162644,0.54273576,95315.0,95314.0,0.001]
[1734963163348,0.052519,95313.0,95300.0,0.08465426]
[1734963163542,0.052519,95313.0,95312.0,0.052519]
[1734963164642,0.37036001,95315.0,95306.0,0.052522]
[1734963164643,0.052523,95307.0,95306.0,0.052522]
[1734963166147,0.057523,95307.0,95306.0,0.052522]
[1734963166340,0.052526,95302.0,95301.0,0.052525]
[1734963168035,0.053526,95302.0,95301.0,0.052525]
[1734963168234,0.004,95302.0,95301.0,0.052525]
[1734963168840,0.005,95302.0,95301.0,0.052525]
[1734963169347,0.057525,95302.0,95301.0,0.052525]
[1734963170641,0.054525,95302.0,95301.0,0.052525]
[1734963171147,0.053525,95302.0,95301.0,0.052525]
[1734963171444,0.058525,95302.0,95301.0,0.052525]
[1734963171844,0.052526,95299.0,95298.0,0.02125131]
[1734963172148,0.052526,95299.0,95298.0,0.02033131]
[1734963172346,0.052527,95298.0,95297.0,0.052527]
[1734963173045,0.001,95299.0,95297.0,0.052527]
[1734963173253,0.12452579,95308.0,95307.0,0.052522]
[1734963173545,0.15530799,95309.0,95305.0,0.3608]
[1734963173748,0.15530799,95309.0,95305.0,0.413323]
[1734963174049,0.15530799,95309.0,95308.0,0.052521]
[1734963175041,0.12456317,95311.0,95310.0,0.05252]
[1734963176442,0.052516,95319.0,95318.0,0.052516]
[1734963178049,0.059516,95319.0,95318.0,0.053516]
[1734963178439,0.055516,95319.0,95318.0,0.052516]
[1734963179252,0.003,95319.0,95311.0,0.052519]
[1734963179446,0.006,95319.0,95311.0,0.052519]
[1734963179646,0.052519,95313.0,95311.0,0.052519]
[1734963179950,0.052519,95312.0,95311.0,0.052519]
[1734963180152,0.052513,95323.0,95322.0,0.052513]
[1734963180944,0.20782099,95323.0,95322.0,0.052513]
[1734963181146,0.15530799,95323.0,95322.0,0.052513]
[1734963181451,0.15530799,95323.0,95322.0,0.056513]
[1734963182151,0.48591009,95325.0,95324.0,0.052513]
[1734963182453,0.48535008,95325.0,95324.0,0.052513]
[1734963182845,0.12455008,95325.0,95324.0,0.052513]
[1734963183443,0.002,95325.0,95322.0,0.02166964]
[1734963183749,0.007,95325.0,95322.0,0.01966964]
[1734963183949,0.007,95325.0,95323.0,0.3608]
[1734963184347,0.009,95325.0,95324.0,0.001]
[1734963184743,0.002,95325.0,95323.0,0.052513]
[1734963184949,0.002,95325.0,95316.0,0.1167]
[1734963184950,0.052516,95318.0,95317.0,0.052516]
[1734963185151,0.052514,95322.0,95321.0,0.052514]
[1734963185549,0.00760001,95325.0,95311.0,0.3608]
[1734963185752,0.052516,95318.0,95315.0,0.052517]
[1734963186054,0.052516,95318.0,95311.0,0.3608]
[1734963186055,0.052513,95324.0,95320.0,0.052515]
[1734963186254,0.001,95318.0,95317.0,0.052516]
[1734963187154,0.052515,95320.0,95318.0,0.052516]
[1734963187850,0.052515,95320.0,95311.0,0.38187032]
[1734963188059,0.052515,95320.0,95319.0,0.052515]
[1734963189347,0.056515,95320.0,95319.0,0.052515]
[1734963189548,0.057515,95320.0,95319.0,0.052515]
[1734963189747,0.053515,95320.0,95319.0,0.052515]
[1734963190049,0.058515,95320.0,95319.0,0.052515]
[1734963191156,0.006,95320.0,95319.0,0.052515]
[1734963191754,0.007,95320.0,95319.0,0.052515]
[1734963192464,0.008,95320.0,95319.0,0.053515]
[1734963192662,0.007,95320.0,95319.0,0.053515]
[1734963192872,0.059515,95320.0,95319.0,0.001]
[1734963193180,0.052519,95312.0,95308.0,0.25150272]
[1734963193367,0.413321,95309.0,95308.0,0.25150272]
[1734963193672,0.052524,95303.0,95302.0,0.31221183]
[1734963193865,0.052524,95303.0,95297.0,0.3746542]
[1734963194069,0.413327,95298.0,95297.0,0.3746542]
[1734963195075,0.052535,95283.0,95282.0,0.052536]
[1734963196275,0.052535,95283.0,95282.0,0.057536]
[1734963196875,0.053535,95283.0,95282.0,0.011]
[1734963197077,0.053535,95283.0,95282.0,0.03053358]
[1734963197276,0.053535,95283.0,95282.0,0.011]
[1734963197483,0.052541,95272.0,95271.0,0.01970719]
[1734963197778,0.052541,95272.0,95268.0,0.00012923]
[1734963197779,0.052543,95269.0,95268.0,0.00012923]
[1734963198975,0.052543,95269.0,95268.0,0.01959212]
[1734963199281,0.058543,95269.0,95268.0,0.01959212]
[1734963199472,0.059543,95269.0,95268.0,0.01959212]
[1734963200780,0.060543,95269.0,95268.0,0.01959212]
[1734963201181,0.061543,95269.0,95268.0,0.01959212]
[1734963201883,0.422343,95269.0,95268.0,0.01959212]
[1734963202185,0.3698,95269.0,95233.0,0.3608]
[1734963202372,0.08465426,95252.0,95243.0,0.1177]
[1734963202572,0.3608,95244.0,95228.0,0.1194]
[1734963202871,0.08465426,95252.0,95223.0,0.37714932]
[1734963202872,0.052564,95230.0,95229.0,0.1177]
[1734963203480,0.01947878,95255.0,95229.0,0.1177]
[1734963203668,0.3608,95261.0,95229.0,0.1177]
[1734963203669,0.052551,95254.0,95251.0,0.052552]
[1734963203872,0.002,95269.0,95243.0,0.002]
[1734963203873,0.12429222,95265.0,95252.0,0.476]
[1734963204079,0.052548,95261.0,95257.0,0.052549]
[1734963204379,0.12429222,95265.0,95252.0,0.47692]
[1734963204578,0.052546,95264.0,95260.0,0.052548]
[1734963204776,0.12429222,95265.0,95260.0,0.052548]
[1734963204983,0.052546,95263.0,95260.0,0.052548]
[1734963205181,0.052546,95263.0,95261.0,0.052547]
[1734963205578,0.44601427,95270.0,95254.0,0.052551]
[1734963205781,0.052549,95258.0,95252.0,0.477]
[1734963205994,0.058546,95264.0,95261.0,0.052547]
[1734963206379,0.007,95263.0,95261.0,0.052547]
[1734963206977,0.05254,95275.0,95273.0,0.05254]
[1734963207179,0.05254,95275.0,95274.0,0.1176]
[1734963208285,0.36136001,95278.0,95252.0,0.38129207]
[1734963208482,0.36136001,95278.0,95253.0,0.1176]
[1734963208483,0.052551,95254.0,95253.0,0.1176]
[1734963209877,0.055551,95254.0,95253.0,0.1176]
[1734963211488,0.056551,95254.0,95253.0,0.1176]
[1734963211986,0.053551,95254.0,95253.0,0.1176]
[1734963212288,0.057551,95254.0,95253.0,0.1176]
[1734963215495,0.052555,95247.0,95246.0,0.01986177]
[1734963215792,0.052558,95241.0,95240.0,0.1137]
[1734963216582,0.001,95247.0,95240.0,0.13174698]
[1734963216787,0.001,95254.0,95242.0,0.052558]
[1734963216991,0.001,95254.0,95241.0,0.3608]
[1734963217185,0.052557,95243.0,95241.0,0.413358]
[1734963218108,0.052557,95243.0,95242.0,0.002]
[1734963218394,0.3608,95256.0,95242.0,0.002]
[1734963218583,0.052553,95252.0,95242.0,0.002]
[1734963218784,0.36144,95256.0,95241.0,0.3628]
[1734963218988,0.052551,95254.0,95251.0,0.052553]
[1734963219494,0.36136001,95256.0,95251.0,0.052553]
[1734963219686,0.052552,95253.0,95251.0,0.052553]
[1734963221096,0.00360001,95256.0,95255.0,0.052551]
[1734963221283,0.05310601,95265.0,95264.0,0.052546]
[1734963221589,0.052546,95265.0,95264.0,0.052546]
[1734963222892,0.056546,95265.0,95264.0,0.052546]
[1734963223491,0.057546,95265.0,95264.0,0.053546]
[1734963223887,0.057546,95265.0,95264.0,0.001]
[1734963224197,0.052549,95257.0,95256.0,0.16115]
[1734963224385,0.052549,95257.0,95256.0,0.17805761]
[1734963224898,0.008,95265.0,95256.0,0.12550761]
[1734963225089,0.052547,95262.0,95261.0,0.052547]
[1734963226204,0.058547,95262.0,95261.0,0.053547]
[1734963226593,0.058547,95262.0,95261.0,0.052547]
[1734963226798,0.057547,95262.0,95261.0,0.052547]
[1734963227304,0.005,95262.0,95261.0,0.052547]
[1734963227704,0.007,95262.0,95261.0,0.052547]
[1734963228295,0.009,95262.0,95261.0,0.053547]
[1734963228495,0.007,95262.0,95261.0,0.053547]
[1734963229003,0.052545,95265.0,95264.0,0.052546]
[1734963229708,0.052547,95262.0,95261.0,0.001]
[1734963230005,0.054547,95262.0,95256.0,0.12550761]
[1734963230300,0.05255,95257.0,95256.0,0.12550761]
[1734963231096,0.052558,95241.0,95240.0,0.1137]
[1734963231808,0.052558,95241.0,95240.0,0.13037225]
[1734963232897,0.052558,95241.0,95240.0,0.13337225]
[1734963233993,0.052558,95241.0,95240.0,0.01967225]
[1734963234193,0.00064,95243.0,95240.0,0.01967225]
[1734963234495,0.12429222,95246.0,95242.0,0.052558]